bitfinex-derivatives/quotes_BTCF0:USTF0_20250405
["timestamp","ask_amount","ask_price","bid_price","bid_amount"]
[1743861071641,0.25284,82623.0,82621.0,0.03575628]
[1743861071837,0.25284,82623.0,82621.0,0.12050358]
[1743861072040,0.25284,82623.0,82622.0,0.0847469]
[1743861072245,0.25284,82623.0,82622.0,0.0854269]
[1743861073346,0.25284,82623.0,82622.0,0.0864269]
[1743861073845,0.25284,82623.0,82622.0,0.00168]
[1743861074042,0.25284,82623.0,82622.0,0.001]
[1743861074252,0.25284,82623.0,82616.0,0.1286]
[1743861074253,0.25284,82623.0,82616.0,0.07855894]
[1743861074446,0.25284,82623.0,82616.0,0.00064]
[1743861074748,0.25284,82623.0,82618.0,0.0847502]
[1743861074949,0.25284,82623.0,82611.0,0.1262]
[1743861075249,0.25284,82623.0,82619.0,0.0847495]
[1743861075545,0.25284,82623.0,82616.0,8e-05]
[1743861075546,0.25284,82623.0,82618.0,0.08475]
[1743861075748,0.25284,82623.0,82619.0,0.0847496]
[1743861075939,0.25284,82623.0,82619.0,0.09368863]
[1743861076749,0.25284,82623.0,82622.0,0.0847469]
[1743861077244,0.25284,82623.0,82621.0,0.0847476]
[1743861077445,0.25284,82623.0,82622.0,0.0847469]
[1743861079352,0.25284,82623.0,82622.0,0.0627469]
[1743861080149,0.25284,82623.0,82622.0,0.0633869]
[1743861080350,0.25284,82623.0,82622.0,0.00064]
[1743861080543,0.25284,82623.0,82622.0,0.0853869]
[1743861081656,0.25284,82623.0,82622.0,0.2054869]
[1743861082954,0.25284,82623.0,82622.0,0.0853869]
[1743861083150,0.25284,82623.0,82622.0,0.00064]
[1743861083351,0.25284,82623.0,82617.0,0.06919394]
[1743861083647,0.25284,82623.0,82617.0,0.01004274]
[1743861083852,0.3608,82619.0,82617.0,0.01004274]
[1743861084042,0.7445,82618.0,82594.0,0.3608]
[1743861084347,0.3608,82601.0,82600.0,0.16152928]
[1743861084551,0.36224,82601.0,82600.0,0.16156928]
[1743861084751,0.00144,82601.0,82600.0,0.16156928]
[1743861084954,0.1212,82608.0,82600.0,0.16156928]
[1743861085256,0.1305,82607.0,82600.0,0.16156928]
[1743861085553,0.13186,82607.0,82600.0,0.17085098]
[1743861085754,0.1212,82606.0,82600.0,0.17085098]
[1743861085954,0.3608,82603.0,82600.0,0.17085098]
[1743861086248,0.1212,82602.0,82600.0,0.17085098]
[1743861086553,0.12256,82602.0,82600.0,0.11036589]
[1743861087355,0.1207,82601.0,82600.0,0.11036589]
[1743861087551,0.12210001,82601.0,82600.0,0.08836589]
[1743861089352,0.12210001,82601.0,82600.0,0.0278808]
[1743861089557,0.12210001,82601.0,82600.0,0.00072]
[1743861090546,0.12210001,82601.0,82600.0,0.05148569]
[1743861090753,0.12210001,82601.0,82596.0,8e-05]
[1743861090954,0.1269,82600.0,82596.0,0.0848528]
[1743861091158,0.12826,82600.0,82597.0,0.0847715]
[1743861091859,0.12826,82600.0,82599.0,0.00987101]
[1743861092459,0.12826,82600.0,82591.0,0.4855]
[1743861092658,0.1214,82599.0,82595.0,8e-05]
[1743861093061,0.1269,82598.0,82595.0,8e-05]
[1743861093351,0.1269,82598.0,82595.0,0.09219136]
[1743861093559,0.1269,82598.0,82596.0,0.1271602]
[1743861093560,0.1262,82597.0,82596.0,0.1271602]
[1743861093760,0.1262,82597.0,82596.0,0.1646867]
[1743861093958,0.12760001,82597.0,82596.0,0.1646867]
[1743861094655,0.12760001,82597.0,82596.0,0.2070735]
[1743861095459,0.12760001,82597.0,82596.0,0.14658841]
[1743861095658,0.12760001,82597.0,82596.0,0.0847735]
[1743861096355,0.12760001,82597.0,82595.0,0.05868097]
[1743861096550,0.1287,82596.0,82595.0,0.05868097]
[1743861096858,0.2521,82596.0,82595.0,0.05868097]
[1743861097054,0.25346,82596.0,82595.0,0.05868097]
[1743861097450,0.25346,82596.0,82595.0,0.14345557]
[1743861098259,0.13006,82596.0,82595.0,0.14345557]
[1743861098561,0.13006,82596.0,82595.0,0.08297048]
[1743861098752,0.00136,82596.0,82595.0,0.3740048]
[1743861099659,0.00088,82596.0,82595.0,0.38299743]
[1743861099861,0.08702328,82619.0,82595.0,0.45002695]
[1743861100064,0.1331,82608.0,82607.0,0.0847623]
[1743861100357,0.1331,82608.0,82607.0,0.4541623]
[1743861100657,0.1222,82619.0,82618.0,0.084751]
[1743861100859,0.0004,82624.0,82623.0,0.0847458]
[1743861101762,0.0004,82624.0,82623.0,0.2129458]
[1743861102064,0.0004,82624.0,82623.0,0.3226458]
[1743861102466,0.0034,82624.0,82623.0,0.3226458]
[1743861106262,0.0034,82624.0,82623.0,0.3764058]
[1743861107575,0.0034,82624.0,82623.0,0.05376]
[1743861107875,0.0034,82624.0,82623.0,0.1385058]
[1743861108063,0.0044,82624.0,82623.0,0.1385058]
[1743861109373,0.3608,82681.0,82628.0,0.3608]
[1743861109674,0.2474,82652.0,82650.0,0.3608]
[1743861109877,0.2474,82652.0,82651.0,0.1378371]
[1743861110072,0.24836001,82652.0,82650.0,0.3608]
[1743861110267,0.39836001,82652.0,82650.0,0.3608]
[1743861110675,0.0847171,82651.0,82650.0,0.30031491]
[1743861110974,0.12098993,82651.0,82643.0,0.00018154]
[1743861111278,0.0847196,82649.0,82634.0,0.3608]
[1743861111465,0.12190993,82651.0,82633.0,8e-05]
[1743861111466,0.3608,82636.0,82633.0,8e-05]
[1743861111776,0.121,82635.0,82633.0,8e-05]
[1743861111967,0.121,82635.0,82629.0,0.3608]
[1743861112767,0.121,82635.0,82629.0,0.36973812]
[1743861113168,0.122,82635.0,82629.0,0.50566081]
[1743861113776,0.122,82635.0,82629.0,0.06012121]
[1743861113966,0.122,82635.0,82624.0,0.08492584]
[1743861114168,0.1227,82634.0,82624.0,0.00018154]
[1743861114478,0.2524,82633.0,82624.0,0.00018154]
[1743861114979,0.2524,82633.0,82624.0,0.00946675]
[1743861115278,0.2524,82633.0,82624.0,0.01018675]
[1743861115279,0.12102215,82632.0,82624.0,0.01018675]
[1743861115482,0.3608,82629.0,82624.0,0.00946675]
[1743861115678,0.36184001,82629.0,82621.0,0.07221435]
[1743861115870,0.2568,82628.0,82621.0,0.07221435]
[1743861116177,0.25776001,82628.0,82621.0,0.07289435]
[1743861116383,0.25776001,82628.0,82621.0,0.00068]
[1743861116771,0.25776001,82628.0,82627.0,0.0847417]
[1743861116973,0.25776001,82628.0,82627.0,0.0853817]
[1743861117479,0.25876001,82628.0,82627.0,0.0853817]
[1743861117677,0.25876001,82628.0,82627.0,0.1951817]
[1743861117880,0.1322,82628.0,82627.0,0.1951817]
[1743861118183,0.00212001,82628.0,82627.0,0.3247817]
[1743861118374,0.001,82628.0,82627.0,0.3247817]
[1743861118572,0.1272,82628.0,82627.0,0.3247817]
[1743861119382,0.001,82628.0,82627.0,0.3257817]
[1743861119575,0.1262,82637.0,82636.0,0.0847325]
[1743861119775,0.12732001,82637.0,82636.0,0.36144]
[1743861119976,0.12732001,82637.0,82636.0,0.5559725]
[1743861121074,0.12832001,82637.0,82636.0,0.5559725]
[1743861121269,0.12932001,82637.0,82636.0,0.5559725]
[1743861121981,0.12932001,82637.0,82636.0,0.6759725]
[1743861122180,0.1282,82637.0,82636.0,0.6759725]
[1743861122475,0.1282,82637.0,82636.0,0.7290525]
[1743861122684,0.1282,82637.0,82636.0,0.66856741]
[1743861122882,0.1282,82637.0,82636.0,1.02936741]
[1743861123978,0.1282,82637.0,82636.0,0.82463491]
[1743861124178,0.12511846,82639.0,82636.0,0.71483491]
[1743861124383,0.12511846,82639.0,82637.0,0.0847307]
[1743861124581,0.12511846,82639.0,82636.0,0.71419491]
[1743861125088,0.12511846,82639.0,82638.0,0.0847305]
[1743861125280,0.12611846,82639.0,82638.0,0.0853705]
[1743861125491,0.12611846,82639.0,82638.0,0.00064]
[1743861125884,0.25401846,82639.0,82636.0,0.65434982]
[1743861126187,0.25537846,82639.0,82638.0,0.0847305]
[1743861126378,0.25537846,82639.0,82638.0,0.0853705]
[1743861126583,0.12747846,82639.0,82638.0,0.0853705]
[1743861126782,0.12611846,82639.0,82638.0,0.0853705]
[1743861126983,0.12711846,82639.0,82638.0,0.0853705]
[1743861127497,0.25111846,82639.0,82638.0,0.0853705]
[1743861127675,0.25243846,82639.0,82638.0,0.2083705]
[1743861127880,0.25111846,82639.0,82638.0,0.2083705]
[1743861128800,0.25111846,82639.0,82638.0,0.12364]
[1743861129284,0.25111846,82639.0,82638.0,0.2083705]
[1743861129686,0.25111846,82639.0,82636.0,0.65434982]
[1743861129890,0.25263846,82639.0,82636.0,0.60190982]
[1743861130196,0.3608,82637.0,82636.0,0.00064]
[1743861130500,0.3624,82637.0,82628.0,0.35658696]
[1743861130689,0.2467,82636.0,82628.0,0.35658696]
[1743861131795,0.2467,82636.0,82628.0,0.29610187]
[1743861132091,0.24922,82636.0,82628.0,0.29610187]
[1743861132291,0.12882,82636.0,82628.0,0.29610187]
[1743861133594,0.12982,82636.0,82627.0,0.0847417]
[1743861133893,0.12982,82636.0,82628.0,0.0847398]
[1743861134587,0.12882,82636.0,82629.0,0.0847393]
[1743861134793,0.12882,82636.0,82626.0,0.36088]
[1743861134794,0.12982,82636.0,82626.0,0.36088]
[1743861134984,0.12982,82636.0,82634.0,0.0847343]
[1743861135297,0.12982,82636.0,82635.0,0.0847335]
[1743861135592,0.1283,82636.0,82635.0,0.3416335]
[1743861136794,0.1283,82636.0,82635.0,0.3196335]
[1743861137293,0.002,82636.0,82635.0,0.4406335]
[1743861137595,0.001,82636.0,82635.0,0.4406335]
[1743861138001,0.1292,82639.0,82637.0,0.0423657]
[1743861138196,0.1292,82639.0,82638.0,0.2491]
[1743861138392,0.1292,82639.0,82638.0,0.3338305]
[1743861140091,0.00018154,82640.0,82638.0,0.3338305]
[1743861140092,0.00018154,82640.0,82639.0,0.0847294]
[1743861140292,0.00018154,82640.0,82639.0,0.2857294]
[1743861140496,0.00018154,82640.0,82639.0,0.70313868]
[1743861140999,0.00018154,82640.0,82639.0,0.61840928]
[1743861141298,0.00018154,82640.0,82639.0,0.70313868]
[1743861141699,0.00118154,82640.0,82639.0,0.55313868]
[1743861142295,0.00118154,82640.0,82639.0,0.55312421]
[1743861143599,0.00218154,82640.0,82639.0,0.55312421]
[1743861143902,0.00218154,82640.0,82639.0,0.53112421]
[1743861144100,0.00218154,82640.0,82639.0,0.35212421]
[1743861145296,0.00218154,82640.0,82639.0,0.63403127]
[1743861146501,0.00218154,82640.0,82639.0,0.64823518]
[1743861147098,0.00218154,82640.0,82639.0,0.57354618]
[1743861148404,0.00218154,82640.0,82639.0,0.58775841]
[1743861148605,0.00218154,82640.0,82639.0,0.57354618]
[1743861149099,0.00218154,82640.0,82639.0,0.58775822]
[1743861149306,0.00218154,82640.0,82639.0,0.57354618]
[1743861150009,0.00218154,82640.0,82639.0,0.51306109]
[1743861150714,0.00218154,82640.0,82639.0,0.52726777]
[1743861151406,0.00218154,82640.0,82639.0,0.52726775]
[1743861151999,0.00218154,82640.0,82639.0,0.58034775]
[1743861152194,0.00218154,82640.0,82639.0,0.56614109]
[1743861152399,0.00218154,82640.0,82639.0,0.58034246]
[1743861152608,0.1206,82659.0,82658.0,0.08471]
[1743861153103,0.1206,82659.0,82657.0,0.4031554]
[1743861153299,0.1238,82658.0,82657.0,0.4878664]
[1743861153906,0.1254,82658.0,82657.0,0.4878664]
[1743861154601,0.1264,82658.0,82657.0,0.4878664]
[1743861155210,0.1274,82658.0,82657.0,0.4878664]
[1743861155605,0.1264,82658.0,82657.0,0.4878664]
[1743861155800,0.1274,82658.0,82657.0,0.4878664]
[1743861156110,0.1274,82658.0,82657.0,0.42738131]
[1743861157101,0.1264,82658.0,82657.0,0.42738131]
[1743861157301,0.1254,82658.0,82657.0,0.42738131]
[1743861157502,0.1264,82658.0,82657.0,0.42738131]
[1743861158505,0.10583255,82658.0,82657.0,0.42738131]
[1743861158704,0.10423255,82658.0,82657.0,0.64708131]
[1743861159208,0.10423255,82658.0,82657.0,0.58659622]
[1743861159412,0.07660104,82658.0,82657.0,0.58659622]
[1743861160610,0.06184904,82658.0,82657.0,0.58659622]
[1743861161111,0.09902735,82659.0,82657.0,1.20415622]
[1743861161416,0.1253,82678.0,82677.0,0.0846905]
[1743861161417,0.06092508,82678.0,82677.0,0.0846905]
[1743861161607,0.0004,82696.0,82674.0,0.0423464]
[1743861161608,0.0004,82696.0,82681.0,0.0846864]
[1743861161807,0.35595254,82682.0,82681.0,0.4454864]
[1743861162214,0.00152,82682.0,82681.0,0.3608]
[1743861162416,0.00018142,82690.0,82687.0,0.0846796]
[1743861162609,0.00018142,82690.0,82689.0,0.0846782]
[1743861162809,0.00018142,82690.0,82689.0,0.50511942]
[1743861163012,0.00018142,82690.0,82689.0,0.14431942]
[1743861164118,0.00118142,82690.0,82689.0,0.14431942]
[1743861165519,0.00278142,82690.0,82689.0,0.14431942]
[1743861165818,0.00378142,82690.0,82689.0,0.14431942]
[1743861166324,0.06205274,82693.0,82692.0,0.0846751]
[1743861166519,0.05595909,82693.0,82692.0,0.0846751]
[1743861167511,0.05695909,82693.0,82689.0,0.48272536]
[1743861167818,0.2555,82692.0,82689.0,0.42964536]
[1743861168311,0.2555,82692.0,82689.0,0.36916027]
[1743861168518,0.25662001,82692.0,82689.0,0.36916027]
[1743861169222,0.0423399,82688.0,82680.0,8e-05]
[1743861169420,0.3608,82681.0,82658.0,0.1223]
[1743861169621,0.3608,82659.0,82648.0,0.6174]
[1743861169826,0.1234,82658.0,82651.0,0.0847161]
[1743861170127,0.12448,82658.0,82655.0,0.0847126]
[1743861170424,0.12448,82658.0,82657.0,0.084711]
[1743861170619,0.12448,82658.0,82657.0,0.09422627]
[1743861171319,0.12448,82658.0,82657.0,0.00064]
[1743861171519,0.12448,82658.0,82657.0,0.085351]
[1743861172022,0.12448,82658.0,82657.0,0.063351]
[1743861172220,0.25308,82658.0,82657.0,0.064071]
[1743861172727,0.00018142,82666.0,82659.0,0.0423541]
[1743861172917,0.3608,82670.0,82667.0,0.0847007]
[1743861172918,0.12108701,82668.0,82667.0,0.0847007]
[1743861173120,0.12200701,82668.0,82667.0,0.1387007]
[1743861173727,0.12200701,82668.0,82667.0,0.054]
[1743861173925,0.12200701,82668.0,82667.0,0.05308]
[1743861174124,0.48280701,82668.0,82667.0,0.05308]
[1743861174316,0.48280701,82668.0,82658.0,0.14868421]
[1743861174520,0.48280701,82668.0,82658.0,0.14940421]
[1743861174825,0.48480701,82668.0,82658.0,0.23411341]
[1743861175020,0.48480701,82668.0,82659.0,0.0847088]
[1743861175227,0.48480701,82668.0,82661.0,0.0423534]
[1743861175420,0.48480701,82668.0,82665.0,0.0847021]
[1743861176724,0.48480701,82668.0,82667.0,0.0847007]
[1743861177323,0.48480701,82668.0,82666.0,0.0423508]
[1743861177725,0.48480701,82668.0,82667.0,0.0847007]
[1743861178431,0.48380701,82668.0,82667.0,0.0847007]
[1743861178622,0.48480701,82668.0,82667.0,0.0847007]
[1743861179123,0.48480701,82668.0,82667.0,0.0627007]
[1743861180331,0.48480701,82668.0,82667.0,0.0636207]
[1743861180530,0.48480701,82668.0,82667.0,0.00092]
[1743861180729,0.48480701,82668.0,82667.0,0.0856207]
[1743861181028,0.12400701,82668.0,82667.0,0.3446207]
[1743861181420,0.00292,82668.0,82667.0,0.3446207]
[1743861182135,0.002,82668.0,82667.0,0.3446207]
[1743861182333,0.001,82668.0,82667.0,0.3446207]
[1743861182529,0.00018142,82676.0,82675.0,0.0846925]
[1743861182832,0.2529,82689.0,82686.0,0.0846808]
[1743861183024,0.25382,82689.0,82686.0,0.1693616]
[1743861183225,0.25382,82689.0,82686.0,0.1700016]
[1743861183420,0.25382,82689.0,82686.0,0.06776601]
[1743861183630,0.25382,82689.0,82688.0,0.0846792]
[1743861183830,0.25382,82689.0,82688.0,0.0853192]
[1743861184032,0.25382,82689.0,82688.0,0.2168192]
[1743861184227,0.13192,82689.0,82688.0,0.3449192]
[1743861185533,0.13292,82689.0,82688.0,0.3449192]
[1743861185727,0.13392,82689.0,82688.0,0.3449192]
[1743861186531,0.13392,82689.0,82688.0,0.00064]
[1743861186733,0.13392,82689.0,82676.0,0.1287]
[1743861186938,0.1241,82688.0,82683.0,8e-05]
[1743861187241,0.12506001,82688.0,82683.0,8e-05]
[1743861187436,0.3608,82684.0,82675.0,0.05308]
[1743861187632,0.3608,82676.0,82675.0,0.1377725]
[1743861187832,0.3608,82676.0,82672.0,0.0846953]
[1743861188035,0.2598,82675.0,82672.0,0.0846953]
[1743861188335,0.2598,82675.0,82670.0,8e-05]
[1743861188639,0.26072,82675.0,82670.0,8e-05]
[1743861188837,0.26072,82675.0,82670.0,0.0847774]
[1743861189034,0.26072,82675.0,82671.0,0.0846961]
[1743861189241,0.26072,82675.0,82671.0,0.169392]
[1743861189438,0.26072,82675.0,82672.0,0.1313]
[1743861189737,0.26072,82675.0,82670.0,0.1273]
[1743861190146,0.26072,82675.0,82670.0,0.12798]
[1743861190646,0.26072,82675.0,82670.0,0.2126777]
[1743861190839,0.26072,82675.0,82670.0,0.00068]
[1743861191143,0.26072,82675.0,82669.0,0.05304]
[1743861191346,0.26072,82675.0,82669.0,0.05372]
[1743861191539,0.26072,82675.0,82669.0,0.05304]
[1743861191740,0.26072,82675.0,82669.0,0.1377382]
[1743861191939,0.26072,82675.0,82669.0,0.0846982]
[1743861192140,0.26072,82675.0,82669.0,0.1693965]
[1743861192439,0.26072,82675.0,82669.0,0.1701165]
[1743861192640,0.26072,82675.0,82669.0,0.0854183]
[1743861193037,0.26072,82675.0,82670.0,0.0846977]
[1743861193236,0.26072,82675.0,82671.0,0.0846964]
[1743861193432,0.26072,82675.0,82671.0,0.00072]
[1743861193649,0.26072,82675.0,82671.0,0.0854164]
[1743861194150,0.26072,82675.0,82672.0,0.0846955]
[1743861194347,0.26072,82675.0,82672.0,0.0853755]
[1743861194843,0.26072,82675.0,82672.0,0.00068]
[1743861195555,0.26072,82675.0,82668.0,0.1710297]
[1743861195739,0.3608,82669.0,82668.0,0.12868]
[1743861195946,0.3608,82669.0,82668.0,0.3377797]
[1743861196146,0.36192001,82669.0,82668.0,0.3377797]
[1743861196744,0.00112001,82669.0,82668.0,0.6985797]
[1743861196945,0.1233,82680.0,82679.0,0.0846884]
[1743861197339,0.1233,82680.0,82679.0,0.4661884]
[1743861198648,0.1243,82680.0,82679.0,0.3815]
[1743861199042,0.24656,82680.0,82679.0,0.3815]
[1743861199349,0.24656,82680.0,82679.0,0.1311]
[1743861199650,0.24756,82680.0,82679.0,0.1311]
[1743861199847,0.60836,82680.0,82676.0,8e-05]
[1743861200049,0.60836,82680.0,82671.0,0.1243]
[1743861200242,0.3608,82672.0,82671.0,0.1243]
[1743861201649,0.3608,82672.0,82671.0,0.06376511]
[1743861202042,0.3608,82672.0,82671.0,0.27296171]
[1743861202238,0.3608,82672.0,82671.0,0.39536171]
[1743861202442,0.6062,82680.0,82679.0,0.0846884]
[1743861202639,0.4851,82680.0,82679.0,0.0846884]
[1743861202846,0.48522001,82680.0,82679.0,0.0846884]
[1743861203138,0.48522001,82680.0,82679.0,0.3287884]
[1743861203744,0.12542001,82680.0,82679.0,0.3287884]
[1743861204353,0.12542001,82680.0,82679.0,0.2441]
[1743861204545,0.12642001,82680.0,82679.0,0.2441]
[1743861204745,0.12642001,82680.0,82679.0,0.26825351]
[1743861205558,0.12642001,82680.0,82679.0,0.18356511]
[1743861205741,0.12642001,82680.0,82671.0,0.06376511]
[1743861205953,0.3608,82674.0,82673.0,0.1309]
[1743861206342,0.36192001,82674.0,82673.0,0.1309]
[1743861207750,0.36192001,82674.0,82673.0,0.07036511]
[1743861208953,0.36192001,82674.0,82673.0,0.15505971]
[1743861209660,0.36192001,82674.0,82673.0,0.28515971]
[1743861210565,0.36192001,82674.0,82667.0,0.00026142]
[1743861210859,0.2573,82673.0,82668.0,0.2984498]
[1743861211057,0.2573,82673.0,82669.0,0.2910966]
[1743861211246,0.2573,82673.0,82669.0,0.2910965]
[1743861211452,0.2573,82673.0,82670.0,0.1301]
[1743861211857,0.2573,82673.0,82671.0,0.121]
[1743861212263,0.2573,82673.0,82672.0,0.1253]
[1743861213157,0.25842001,82673.0,82672.0,0.1253]
[1743861213358,0.40842001,82673.0,82667.0,0.00018142]
[1743861213558,0.3608,82668.0,82636.0,0.3732]
[1743861213748,0.3608,82637.0,82626.0,0.20986753]
[1743861213951,0.2516,82636.0,82626.0,0.20986753]
[1743861214355,0.3608,82629.0,82626.0,0.19676265]
[1743861214547,0.2516,82628.0,82626.0,0.25698988]
[1743861215461,0.2516,82628.0,82626.0,0.25898988]
[1743861216049,0.25272001,82628.0,82626.0,0.25698988]
[1743861216249,0.25272001,82628.0,82626.0,0.07112235]
[1743861216659,0.25272001,82628.0,82627.0,0.2593]
[1743861216967,0.25272001,82628.0,82627.0,0.28350681]
[1743861217357,0.12262001,82628.0,82627.0,0.28350681]
[1743861217955,0.12262001,82628.0,82627.0,0.28550681]
[1743861219363,0.12262001,82628.0,82627.0,0.28750681]
[1743861219957,0.12262001,82628.0,82627.0,0.22697192]
[1743861221470,0.00018153,82636.0,82635.0,0.0627335]
[1743861221654,0.13148153,82636.0,82635.0,0.1815335]
[1743861222865,0.13148153,82636.0,82635.0,0.1188]
[1743861223066,0.13148153,82636.0,82635.0,0.3261335]
[1743861224572,0.13148153,82636.0,82635.0,0.4522335]
[1743861225166,0.13148153,82636.0,82635.0,0.4528735]
[1743861225369,0.10290192,82636.0,82635.0,0.4528735]
[1743861225867,0.10290192,82636.0,82635.0,0.39233861]
[1743861226269,0.10290192,82636.0,82635.0,0.44541861]
[1743861226470,0.3608,82649.0,82648.0,0.0847202]
[1743861226667,0.36156,82649.0,82648.0,0.0854402]
[1743861226861,0.00076,82649.0,82648.0,0.3349402]
[1743861227065,0.00018153,82657.0,82656.0,0.084712]
[1743861227273,0.00094153,82657.0,82656.0,0.085352]
[1743861227868,0.00094153,82657.0,82656.0,0.00064]
[1743861228273,0.00094153,82657.0,82654.0,0.0423569]
[1743861228572,0.12774153,82657.0,82654.0,0.1277102]
[1743861228772,0.12874153,82657.0,82654.0,0.1277102]
[1743861228968,0.12874153,82657.0,82649.0,0.1738593]
[1743861229166,0.12874153,82657.0,82653.0,0.0847145]
[1743861229369,0.12874153,82657.0,82654.0,0.0847137]
[1743861229571,0.12874153,82657.0,82654.0,0.0854337]
[1743861229874,0.12874153,82657.0,82656.0,0.084712]
[1743861230072,0.12974153,82657.0,82656.0,0.084712]
[1743861230875,0.12874153,82657.0,82656.0,0.084712]
[1743861231075,0.12974153,82657.0,82656.0,0.084712]
[1743861231468,0.24884153,82657.0,82656.0,0.084712]
[1743861231669,0.24784153,82657.0,82656.0,0.084712]
[1743861231865,0.24884153,82657.0,82656.0,0.084712]
[1743861232066,0.24884153,82657.0,82655.0,0.0423565]
[1743861232765,0.24884153,82657.0,82656.0,0.084712]
[1743861233372,0.12974153,82657.0,82656.0,0.084712]
[1743861233573,0.12974153,82657.0,82656.0,0.212212]
[1743861234570,0.12874153,82657.0,82656.0,0.212212]
[1743861234776,0.12974153,82657.0,82656.0,0.212212]
[1743861235080,0.12974153,82657.0,82656.0,0.1275]
[1743861235272,0.12974153,82657.0,82656.0,0.212932]
[1743861237575,0.00294153,82657.0,82656.0,0.212932]
[1743861238077,0.11540756,82663.0,82662.0,0.0847059]
[1743861238283,0.3608,82674.0,82673.0,0.0846946]
[1743861238478,0.36176001,82674.0,82673.0,0.0846946]
[1743861238677,0.36176001,82674.0,82673.0,0.0853746]
[1743861238981,0.00096001,82674.0,82673.0,0.0853746]
[1743861240177,0.00196001,82674.0,82673.0,0.00068]
[1743861240375,0.00296001,82674.0,82665.0,0.00018153]
[1743861240570,0.00296001,82674.0,82673.0,0.0846946]
[1743861241482,0.002,82674.0,82673.0,0.45455965]
[1743861241887,0.00018153,82682.0,82681.0,0.0846864]
[1743861242072,0.00018153,82682.0,82681.0,0.1377264]
[1743861242272,0.00118153,82682.0,82681.0,0.1377264]
[1743861242685,0.00118153,82682.0,82681.0,0.2602264]
[1743861242882,0.3608,82705.0,82689.0,0.0423391]
[1743861243088,0.1264,82699.0,82698.0,0.084669]
[1743861243789,0.1264,82699.0,82698.0,0.14446687]
[1743861244085,0.1264,82699.0,82698.0,0.05979787]
[1743861244282,0.1264,82699.0,82698.0,0.084669]
[1743861244983,0.12708,82699.0,82698.0,0.00068]
[1743861245188,0.22156,82699.0,82698.0,0.00068]
[1743861245990,0.22156,82699.0,82698.0,0.05372]
[1743861246387,0.22256,82699.0,82698.0,0.05372]
[1743861246587,0.22256,82699.0,82698.0,0.1136435]
[1743861247189,0.22256,82699.0,82698.0,0.05310861]
[1743861247391,0.22356,82699.0,82698.0,0.00064]
[1743861247994,0.22356,82699.0,82698.0,0.085309]
[1743861248180,0.10316,82699.0,82698.0,0.085309]
[1743861248385,0.10416,82699.0,82698.0,0.085309]
[1743861249494,0.10416,82699.0,82698.0,0.078309]
[1743861249697,0.10348,82699.0,82698.0,0.078949]
[1743861249895,0.10248,82699.0,82698.0,0.26662442]
[1743861250287,0.10248,82699.0,82698.0,0.18831542]
[1743861250490,0.10248,82699.0,82698.0,0.27298442]
[1743861252094,0.10148,82699.0,82698.0,0.27298442]
[1743861253392,0.10148,82699.0,82698.0,0.21244953]
[1743861254592,0.10148,82699.0,82698.0,0.06197542]
[1743861254800,0.10148,82699.0,82697.0,0.0846698]
[1743861255004,0.10148,82699.0,82696.0,0.08467]
[1743861255208,0.10148,82699.0,82697.0,8e-05]
[1743861255597,0.10148,82699.0,82698.0,0.084669]
[1743861256400,0.10248,82699.0,82697.0,0.084749]
[1743861256607,0.10372001,82699.0,82698.0,0.084669]
[1743861256807,0.10248,82699.0,82698.0,0.084669]
[1743861257208,0.10348,82699.0,82697.0,0.06064613]
[1743861257407,0.10348,82699.0,82697.0,0.06056613]
[1743861257408,0.1174,82698.0,82697.0,0.06056613]
[1743861257608,0.1174,82698.0,82695.0,0.17824]
[1743861257609,0.1174,82698.0,82696.0,8e-05]
[1743861257811,0.1268,82697.0,82696.0,0.084751]
[1743861258606,0.12808,82697.0,82696.0,0.084751]
[1743861259210,0.00128,82697.0,82696.0,8e-05]
[1743861259416,0.085219,82700.0,82698.0,0.0846683]
[1743861259617,0.085219,82700.0,82698.0,0.0846686]
[1743861259820,0.085219,82700.0,82699.0,0.084668]
[1743861260717,0.086219,82700.0,82699.0,0.084668]
[1743861261515,0.085219,82700.0,82699.0,0.084668]
[1743861261817,0.088499,82700.0,82699.0,0.084668]
[1743861262217,0.087499,82700.0,82699.0,0.084668]
[1743861262419,0.088499,82700.0,82698.0,0.0846686]
[1743861262617,0.088499,82700.0,82699.0,0.121]
[1743861262814,0.088499,82700.0,82699.0,0.205668]
[1743861263619,0.088499,82700.0,82699.0,0.187668]
[1743861264216,0.088499,82700.0,82697.0,0.19829757]
[1743861264522,0.088499,82700.0,82698.0,0.084669]
[1743861264523,0.1181,82699.0,82698.0,0.084669]
[1743861264915,0.086219,82700.0,82699.0,0.084668]
[1743861265114,0.086219,82700.0,82699.0,0.10132492]
[1743861265311,0.02469917,82700.0,82699.0,0.10132492]
[1743861265516,0.02345916,82700.0,82699.0,0.18072492]
[1743861265914,0.36091843,82707.0,82706.0,0.0846608]
[1743861266311,0.346111,82716.0,82713.0,0.0846536]
[1743861266517,0.34735101,82716.0,82715.0,0.0846516]
[1743861266823,0.34735101,82716.0,82715.0,0.10130852]
[1743861267315,0.00124001,82716.0,82715.0,0.21660852]
[1743861267521,0.1181,82727.0,82725.0,0.0846406]
[1743861267717,0.11934001,82727.0,82725.0,0.0846406]
[1743861267917,0.11934001,82727.0,82723.0,0.1153]
[1743861268316,0.11934001,82727.0,82725.0,0.0846414]
[1743861268516,0.11934001,82727.0,82725.0,0.00917791]
[1743861268721,0.11934001,82727.0,82724.0,0.01665692]
[1743861268929,0.11934001,82727.0,82723.0,0.0846429]
[1743861269327,0.12034001,82727.0,82723.0,0.0846429]
[1743861269531,0.1203,82726.0,82723.0,0.0846429]
[1743861269733,0.12154001,82726.0,82722.0,0.1533221]
[1743861270029,0.1211,82725.0,82724.0,0.0846424]
[1743861270426,0.12242,82725.0,82724.0,0.0846424]
[1743861270730,0.12242,82725.0,82722.0,0.0423221]
[1743861270930,0.1122,82724.0,82722.0,0.0423221]
[1743861271323,0.1211,82723.0,82722.0,0.0423221]
[1743861271519,0.1211,82723.0,82711.0,0.0423278]
[1743861271714,0.001,82726.0,82710.0,0.16549771]
[1743861271715,0.1122,82722.0,82721.0,0.0846454]
[1743861271917,0.00394001,82722.0,82721.0,0.4984454]
[1743861272131,0.0027,82722.0,82721.0,0.5777454]
[1743861272318,0.001,82726.0,82725.0,0.0846414]
[1743861272525,0.001,82726.0,82725.0,0.053]
[1743861272719,0.1214,82731.0,82721.0,0.3608]
[1743861272924,0.2386,82731.0,82725.0,0.0846407]